Workbook

Sheet PL
C3: Konzernabschluss zum 31. März 2021.
C5: Konsolidierte Gesamtergebnisrechnung.
C7: in EUR | E7: 2019/20 | G7: 2020/21
C8: Umsatzerlöse | E8: 731183929.7 | G8: 505174599.4
C9: Sonstige betriebliche Erträge | E9: 15985145.5 | G9: 9930705.789
C10: Veränderung des Bestandes an Fertigerzeugnissen, unfertigen Erzeugnissen sowie an noch nicht abrechenbaren Leistungen | E10: -6117402.925 | G10: -6234895.322
C11: Aufwendungen für Material und sonstige bezogene Herstellungsleistungen | E11: -334939805.2 | G11: -243459807.9
C12: Personalaufwand | E12: -269167583.2 | G12: -243841220.4
C13: Sonstige betriebliche Aufwendungen | E13: -118671516.2 | G13: -84651853.82
C14: Anteiliges Ergebnis aus assoziierten Unternehmen und Gemeinschaftsunternehmen | E14: -4638827.539 | G14: -4067274.062
C15: Ergebnis aus betrieblicher Tätigkeit vor Abschreibungen und Wertminderungen (EBITDA) 1) | E15: 13633940.21 | G15: -67149746.4
C16: Aufwand für planmäßige Abschreibungen | E16: -27919654.32 | G16: -24739763.63
C17: Wertminderungen | E17: -24882070.55 | G17: -31271011.23
C18: Ergebnis aus betrieblicher Tätigkeit (EBIT) | E18: -39167784.66 | G18: -123160521.3
C19: Finanzerträge | E19: 4983700.424 | G19: 7646138.928
C20: Finanzaufwendungen | E20: -28094876.04 | G20: -17253523.02
C21: Finanzergebnis | E21: -23111175.61 | G21: -9607384.093
C22: Anteiliges Ergebnis aus assoziierten Unternehmen und Gemeinschaftsunternehmen als Finanzinvestitionen | E22: -1167378.67 | G22: -360732.61
C23: Ergebnis vor Steuern | E23: -63446338.94 | G23: -133128638
C24: Ertragsteuern | E24: 7728110.158 | G24: 27840203.91
C25: Periodenergebnis | E25: -55718228.78 | G25: -105288434.1
C26: davon den Anteilseignern der Gesellschaft zurechenbar | E26: -48136696.76 | G26: -102878148.8
C27: davon nicht beherrschende Anteile | E27: -7581532.021 | G27: -2410285.241
C29: Periodenergebnis je Aktie, den Anteilseignern der Gesellschaft zurechenbar
C30: verwässert = unverwässert | E30: -3.702822828 | G30: -7.913703755
C32: Sonstiges Ergebnis
C33: Währungsumrechnungsdifferenzen | E33: 1059228.265 | G33: 11105378.86
C34: Währungsumrechnungsdifferenzen aus Nettoinvestitionen in einen ausländischen Geschäftsbetrieb | E34: 1217211.01 | G34: -3248055.55
C35: Steuern betreffend Posten, die in das Periodenergebnis umgegliedert werden | E35: -304302.75 | G35: 812013.88
C36: Summe der Posten, die anschließend in das Periodenergebnis umgegliedert werden | E36: 1972136.525 | G36: 8669337.189
C37: Umbewertungen von Verpflichtungen aus Leistungen an Arbeitnehmer nach Beendigung des Dienstverhältnisses | E37: -2293351.255 | G37: 496737.168
C38: Steuern betreffend Posten, die nicht in das Periodenergebnis umgegliedert werden | E38: 502926.94 | G38: -126335.85
C39: Summe der Posten, die anschließend nicht in das Periodenergebnis umgegliedert werden | E39: -1790424.315 | G39: 370401.318
C40: Sonstiges Ergebnis der Periode nach Steuern | E40: 181712.2097 | G40: 9039738.507
C41: Gesamtergebnis der Periode | E41: -55536516.57 | G41: -96248695.55
C42: davon den Anteilseignern der Gesellschaft zurechenbar | E42: -49193585.94 | G42: -95414444.16
C43: davon nicht beherrschende Anteile | E43: -6342930.628 | G43: -834251.388
B47: 1) | C47: EBITDA (Ergebnis aus betrieblicher Tätigkeit vor Abschreibungen und Wertminderungen) wurde als neue Kennzahl eingeführt,
C48: um das operative Ergebnis ohne die zahlungsunwirksamen Abschreibungen und Wertminderungen klarer darzustellen.

Sheet BS
C3: Konsolidierte Bilanz.
C5: in EUR | E5: 31. März 2020 | G5: 31. März 2021
C6: AKTIVA
C7: Sachanlagen | E7: 82324598.14 | G7: 55171218.75
C8: Immaterielle Vermögenswerte | E8: 59922455.99 | G8: 36228960.4
C9: Anteile an assoziierten Unternehmen und Gemeinschaftsunternehmen | E9: 32634505.56 | G9: 29750879.93
C10: Sonstige langfristige finanzielle Vermögenswerte und Beteiligungen | E10: 10873387.63 | G10: 12280781.42
C11: Langfristige Vertragsvermögenswerte aus Kundenverträgen | E11: 13777929 | G11: 5188155
C12: Langfristige Leasingforderungen | E12: 1244732.496 | G12: 846547.7969
C13: Sonstige langfristige Vermögenswerte | E13: 269923.1729 | G13: 3592372.248
C14: Latente Steueransprüche | E14: 26288490.27 | G14: 42888235.37
C15: Langfristige Vermögenswerte | E15: 227336022.6 | G15: 185947151.9
C17: Vorräte | E17: 55657736.35 | G17: 41733178.2
C18: Forderungen aus Lieferungen und Leistungen und sonstige kurzfristige Vermögenswerte | E18: 176984224.9 | G18: 130041575.4
C19: Kurzfristige Vertragsvermögenswerte aus Kundenverträgen | E19: 138177685.6 | G19: 105971627
C20: Kurzfristige Leasingforderungen | E20: 442038.5843 | G20: 594824.4255
C21: Kurzfristige Steuerforderungen | E21: 4655850.485 | G21: 25933536.46
C22: Sonstige kurzfristige finanzielle Vermögenswerte | E22: 1296407.655 | G22: 923525.6788
C23: Liquide Mittel | E23: 122631806.8 | G23: 102010356.2
C24: Kurzfristige Vermögenswerte | E24: 499845750.4 | G24: 407208623.4
C26: SUMME AKTIVA | E26: 727181773 | G26: 593155775.2
C28: EIGENKAPITAL
C29: Grundkapital | E29: 13000000 | G29: 13000000
C30: Kapitalrücklage | E30: 117508771.3 | G30: 117508771.3
C31: Konzernbilanzgewinn/-verlust und sonstige Rücklagen | E31: 57652976.5 | G31: -39267924.32
C32: Kapital und Rücklagen, die den Anteilseignern der Gesellschaft zurechenbar sind | E32: 188161747.8 | G32: 91240846.94
C33: Nicht beherrschende Anteile | E33: -5680095.99 | G33: -6479918.66
C34: SUMME EIGENKAPITAL | E34: 182481651.8 | G34: 84760928.28
C36: VERBINDLICHKEITEN
C37: Langfristige Finanzverbindlichkeiten | E37: 185230920.4 | G37: 120894966.6
C38: Langfristige Leasingverbindlichkeiten | E38: 50056883.4 | G38: 35692506.4
C39: Verpflichtungen aus Leistungen an Arbeitnehmer nach Beendigung des Dienstverhältnisses | E39: 27611262.16 | G39: 25425103.4
C40: Langfristige Rückstellungen | E40: 4294724.76 | G40: 5264933.719
C41: Langfristige Vertragsverbindlichkeiten aus Kundenverträgen | E41: 3505358 | G41: 9413374
C42: Sonstige langfristige Verbindlichkeiten | E42: 830435.4606 | G42: 611761.1555
C43: Latente Steuerschulden | E43: 1705943.851 | G43: 1015783.958
C44: Langfristige Verbindlichkeiten | E44: 273235528 | G44: 198318429.2
C46: Kurzfristige Finanzverbindlichkeiten | E46: 50701974.57 | G46: 102362405.6
C47: Kurzfristige Leasingverbindlichkeiten | E47: 13588846.36 | G47: 13584992.69
C48: Verbindlichkeiten aus Lieferungen und Leistungen | E48: 92404441.98 | G48: 59403811.33
C49: Kurzfristige Vertragsverbindlichkeiten aus Kundenverträgen | E49: 26798120.45 | G49: 39144575.1
C50: Kurzfristige Rückstellungen | E50: 23374780.05 | G50: 42471695.16
C51: Kurzfristige Steuerverbindlichkeiten | E51: 4042778.059 | G51: 1747702.42
C52: Sonstige Verbindlichkeiten und Abgrenzungen | E52: 60553651.8 | G52: 51361235.37
C53: Kurzfristige Verbindlichkeiten | E53: 271464592.8 | G53: 310076417.7
C55: SUMME VERBINDLICHKEITEN | E55: 544700120.9 | G55: 508394846.9
C57: SUMME PASSIVA | E57: 727181773 | G57: 593155775.2

Sheet EQ
C4: Konsolidierte Eigenkapitalveränderungsrechnung.
C7: in EUR | E7: Grund- kapital | G7: Kapital- rücklage | I7: Sonstige Rücklagen | K7: Konzern- bilanzgewinn/-verlust | M7: Den Anteilseignern der Gesellschaft zurechenbar | O7: Nicht beherrschende Anteile | Q7: Summe Eigen- kapital
C8: Stand 31. März 2020 | E8: 13000000 | G8: 117508771.3 | I8: -50128447.43 | K8: 107781423.9 | M8: =SUM(E8:K8)+1 -> 188161748.8 | O8: -5680095.99 | Q8: 182481651.8
C9: Effekte aus dem Erwerb von Anteilen an Tochterunternehmen | I9: -1506457.35 | M9: =SUM(E9:K9) -> -1506457.35 | O9: 106457.3501 | Q9: =+M9+O9 -> -1400000
C10: Effekte aus dem Verkauf von Anteilen an Tochterunternehmen | O10: -72028.63863 | Q10: =+M10+O10 -> -72028.63863
C11: Dividende | K11: 0 | M11: 0 | O11: 0 | Q11: 0
C12: Periodenergebnis | K12: -102878148.8 | M12: -102878148.8 | O12: -2410285.241 | Q12: -105288434.1
C13: Sonstiges Ergebnis der Periode:
C14: Währungsumrechnungsdifferenzen | I14: 7093303.194 | M14: 7093303.194 | O14: 1576033.853 | Q14: 8669337.047
C15: Umbewertungen von Verpflichtungen aus Leistungen an Arbeitnehmer nach Beendigung des Dienstverhältnisses | I15: 370401.318 | M15: 370401.318 | O15: 0 | Q15: 370401.318
C16: Stand 31. März 2021 | E16: =SUM(E8:E15) -> 13000000 | G16: =SUM(G8:G15) -> 117508771.3 | I16: =SUM(I8:I15) -> -44171200.27 | K16: =SUM(K8:K15) -> 4903275.111 | M16: =SUM(M8:M15) -> 91240847.1 | O16: =SUM(O8:O15) -> -6479918.667 | Q16: =SUM(Q8:Q15)+0.5 -> 84760927.93
C19: Stand 31. März 2019 | E19: 13000000 | G19: 117508771.3 | I19: -48482735.25 | K19: 175418120.8 | M19: =SUM(E19:K19) -> 257444156.9 | O19: 97985.89973 | Q19: =+M19+O19 -> 257542142.8
C20: Kapital- und Anteilsveränderungen bei einem Tochterunternehmen | I20: -588823 | M20: -588823 | O20: 564849 | Q20: =+M20+O20 -> -23974
C21: Dividende | K21: -19500000 | M21: -19500000 | O21: 0 | Q21: -19500000
C22: Periodenergebnis | K22: -48136696.76 | M22: -48136696.76 | O22: -7581532.021 | Q22: -55718228.78
C23: Sonstiges Ergebnis der Periode:
C24: Währungsumrechnungsdifferenzen | I24: 733535.1291 | M24: 733535.1291 | O24: 1238601.393 | Q24: 1972136.522
C25: Umbewertungen von Verpflichtungen aus Leistungen an Arbeitnehmer nach Beendigung des Dienstverhältnisses | I25: -1790424.315 | M25: -1790424.315 | O25: 0 | Q25: -1790424.315
C26: Stand 31. März 2020 | E26: =SUM(E19:E25) -> 13000000 | G26: =SUM(G19:G25) -> 117508771.3 | I26: =SUM(I19:I25) -> -50128447.44 | K26: =SUM(K19:K25) -> 107781424.1 | M26: =SUM(M19:M25)+1 -> 188161748.9 | O26: =SUM(O19:O25) -> -5680095.729 | Q26: =SUM(Q19:Q25) -> 182481652.2

Sheet CF
C3: Konsolidierte Kapitalflussrechnung.
C5: in EUR | E5: 2019/20 | G5: 2020/21
C6: Ergebnis aus betrieblicher Tätigkeit | E6: -39167784.66 | G6: -123160521.3
C7: Planmäßige Abschreibungen | E7: 27919653.87 | G7: 24739763.63
C8: Wertminderungen | E8: 24882071 | G8: 31271011.23
C9: Veränderung Verpflichtungen aus Leistungen an Arbeitnehmer nach Beendigung des Dienstverhältnisses | E9: -654969.9895 | G9: -1978069.221
C10: Veränderung langfristiger Forderungen aus Lieferungen und Leistungen, langfristiger Vertragsvermögenswerte aus Kundenverträgen und sonstiger langfristiger Vermögenswerte | E10: 2902404.255 | G10: 5552354.623
C11: Veränderung langfristiger Verbindlichkeiten aus Lieferungen und Leistungen, langfristiger Vertragsverbindlichkeiten aus Kundenverträgen und sonstiger langfristiger Verbindlichkeiten und Rückstellungen | E11: -4729892.028 | G11: 6651137.654
C12: Nettozahlungen von Ertragsteuern | E12: -10201166.63 | G12: -13704764.73
C13: Zinseinzahlungen | E13: 1800591.011 | G13: 2268613.246
C14: Zinsauszahlungen | E14: -5814063.626 | G14: -6528435.087
C15: Sonstige (netto) | E15: 5153808.234 | G15: 3080160.172
C16: Cashflow aus dem Ergebnis | E16: 2090651.431 | G16: -71808749.74
C18: Veränderung des Nettoumlaufvermögens:
C19: Veränderung Forderungen aus Lieferungen und Leistungen, kurzfristiger Vertragsvermögenswerte aus Kundenverträgen und sonstiger kurzfristiger Vermögenswerte | E19: 16905844.98 | G19: 79069051.27
C20: Veränderung Vorräte | E20: 8396728.207 | G20: 13924558.15
C21: Veränderung Verbindlichkeiten aus Lieferungen und Leistungen, kurzfristiger Vertragsverbindlichkeiten aus Kundenverträgen und sonstiger kurzfristiger Verbindlichkeiten | E21: -2659068.097 | G21: -29189109.64
C22: Veränderung kurzfristige Rückstellungen | E22: 8641054.878 | G22: 19115275.11
C23: Veränderung des Nettoumlaufvermögens | E23: 31284559.96 | G23: 82919774.9
C25: Cashflow aus betrieblicher Tätigkeit | E25: 33375211.4 | G25: 11111025.15
C27: Ankauf von Sachanlagen | E27: -9284912.625 | G27: -2413780.38
C28: Ankauf von immateriellen Vermögenswerten | E28: -4964889.121 | G28: -3707014.728
C29: Ankauf von Wertpapieren, Beteiligungen und sonstigen langfristigen Finanzanlagen | E29: -19322341.68 | G29: -7973968.8
C30: Zahlungen für den Erwerb von Gesellschaften (abzüglich der liquiden Mittel dieser Gesellschaften) | E30: -177000 | G30: 0
C31: Zahlungen für den Erwerb von Anteilen an at-equity-konsolidierten Gesellschaften | E31: -490360.8119 | G31: -1515212.45
C32: Einzahlungen aus dem Verkauf von Anteilen und der Liquidation von Tochterunternehmen | E32: 7655.737064 | G32: 1290870.368
C33: Einzahlungen aus dem Verkauf von Sachanlagen und immateriellen Vermögenswerten | E33: 2842862.203 | G33: 750763.0758
C34: Einzahlungen aus dem Verkauf von Wertpapieren und sonstigen finanziellen Vermögenswerten | E34: 392319 | G34: 6780771
C35: Cashflow aus Investitionstätigkeit | E35: -30996667.3 | G35: -6787571.914
C37: Free Cashflow 1) | E37: 2378544.1 | G37: 4323453.238
C39: An die Aktionäre der Gesellschaft gezahlte Dividende | E39: -19500000.16 | G39: 0.241253498
C40: Zahlungen für den Erwerb von nicht beherrschenden Anteilen | E40: -2000000 | G40: -1400000
C41: Zunahme langfristiger Finanzverbindlichkeiten | E41: 62630984 | G41: 121077
C42: Zunahme kurzfristiger Finanzverbindlichkeiten | E42: 10119638 | G42: 18789560
C43: Abnahme kurzfristiger Finanzverbindlichkeiten | E43: -6175577 | G43: -30296385
C44: Auszahlungen betreffend Leasing | E44: -13630751.24 | G44: -14047283.68
C45: Cashflow aus Finanzierungstätigkeit | E45: 31444293.69 | G45: -26833031.15
C47: Anfangsbestand Finanzmittel | E47: 94651919.92 | G47: 122631806.8
C48: Veränderung des Finanzmittelbestands 2) | E48: 33822837.79 | G48: -22509577.92
C49: Auswirkungen von Wechselkursänderungen | E49: -5842950.009 | G49: 1888129.239
C50: Endbestand Finanzmittel | E50: 122631806.8 | G50: 102010356.2
B54: 1) | C54: Cashflow aus betrieblicher Tätigkeit + Cashflow aus Investitionstätigkeit
B55: 2) | C55: Free Cashflow + Cashflow aus Finanzierungstätigkeit
